bitfinex-derivatives/quotes_BTCF0:USTF0_20250309
["timestamp","ask_amount","ask_price","bid_price","bid_amount"]
[1741540877348,0.1212074,82518.0,82517.0,0.00018169]
[1741540877652,0.37508841,82518.0,82502.0,0.2166]
[1741540877849,0.4820295,82503.0,82500.0,0.1]
[1741540878147,0.1212633,82481.0,82480.0,0.1212615]
[1741540878349,0.1212633,82481.0,82480.0,0.3378615]
[1741540878648,0.4214296,82483.0,82480.0,0.3378615]
[1741540878649,0.4820595,82483.0,82482.0,0.1212603]
[1741540878853,0.1212595,82483.0,82482.0,0.1212603]
[1741540879052,0.1212595,82483.0,82480.0,0.3378615]
[1741540879053,0.1212618,82481.0,82480.0,0.2166]
[1741540879350,0.2108,82482.0,82481.0,0.1212618]
[1741540879655,0.1212618,82481.0,82480.0,0.2166]
[1741540879849,0.209,82481.0,82480.0,0.3378633]
[1741540880061,0.6060247,82520.0,82480.0,0.3378633]
[1741540880062,0.00018181,82489.0,82488.0,0.1212515]
[1741540880248,0.5716,82501.0,82500.0,0.1212339]
[1741540880444,0.060617,82500.0,82488.0,0.3608]
[1741540880643,0.060617,82500.0,82480.0,0.48152]
[1741540880644,0.1212618,82481.0,82480.0,0.12072]
[1741540880850,0.1212618,82481.0,82480.0,0.218]
[1741540881055,0.1212618,82481.0,82480.0,0.3392633]
[1741540881254,0.56595955,82481.0,82480.0,0.3392633]
[1741540881454,0.56595955,82481.0,82480.0,0.218]
[1741540881649,0.44469775,82481.0,82480.0,0.3392633]
[1741540881854,0.44469775,82481.0,82472.0,0.0142997]
[1741540881855,0.1212662,82478.0,82472.0,0.0142997]
[1741540882152,0.1212662,82478.0,82474.0,0.1212709]
[1741540882354,0.80549775,82481.0,82480.0,0.1212633]
[1741540882555,0.57409775,82481.0,82480.0,0.1212633]
[1741540882747,0.2094,82481.0,82480.0,0.1212633]
[1741540882950,0.3608,82482.0,82481.0,0.1212618]
[1741540883145,0.00018181,82489.0,82488.0,0.1212515]
[1741540883453,0.00018181,82489.0,82488.0,0.2420115]
[1741540883952,0.4435,82497.0,82490.0,0.1212483]
[1741540884156,0.4435,82497.0,82488.0,0.12076]
[1741540884157,0.00388028,82496.0,82493.0,0.0606215]
[1741540884353,0.00388028,82496.0,82495.0,0.4820412]
[1741540884748,0.00388028,82496.0,82494.0,0.2308]
[1741540884948,0.3608,82501.0,82500.0,0.1212339]
[1741540885364,0.1212354,82499.0,82498.0,0.12072]
[1741540885547,0.060619,82498.0,82495.0,0.1212399]
[1741540885752,0.3508383,82497.0,82496.0,0.2308]
[1741540885956,0.4435,82497.0,82488.0,0.007]
[1741540886156,0.00386482,82499.0,82498.0,0.1212368]
[1741540886354,0.1212463,82492.0,82489.0,0.2308]
[1741540886549,0.1182486,82490.0,82489.0,0.2308]
[1741540886952,0.00388991,82490.0,82489.0,0.3520501]
[1741540887460,0.00088991,82490.0,82489.0,0.3520501]
[1741540887860,0.12213851,82490.0,82489.0,0.3520501]
[1741540888052,0.48293851,82490.0,82489.0,0.4727701]
[1741540888249,0.48393851,82490.0,82489.0,0.35452]
[1741540888453,0.00188991,82490.0,82489.0,0.4757701]
[1741540888850,0.00188991,82490.0,82489.0,0.35452]
[1741540888851,0.12313851,82490.0,82489.0,0.35452]
[1741540889052,0.12313851,82490.0,82489.0,0.003]
[1741540889257,0.13734744,82490.0,82489.0,0.003]
[1741540889449,0.79154744,82490.0,82489.0,0.003]
[1741540889853,0.1212515,82488.0,82487.0,0.00018181]
[1741540890063,0.4820515,82488.0,82487.0,0.00018181]
[1741540890363,0.48862692,82488.0,82487.0,0.00018181]
[1741540890762,0.42630313,82488.0,82487.0,0.00018181]
[1741540890958,0.42630313,82488.0,82475.0,0.00181858]
[1741540891262,0.1212692,82476.0,82475.0,0.00181858]
[1741540891651,0.12784462,82476.0,82475.0,0.00181858]
[1741540892058,0.92504462,82476.0,82475.0,0.00181858]
[1741540892457,0.92504462,82476.0,82475.0,0.12308918]
[1741540892458,0.80377542,82476.0,82475.0,0.12308918]
[1741540892865,0.92504462,82476.0,82475.0,0.12308918]
[1741540893168,0.92504462,82476.0,82475.0,0.33318918]
[1741540893357,0.4502391,82476.0,82475.0,0.33318918]
[1741540893560,0.0138391,82476.0,82475.0,0.33318918]
[1741540893867,0.001,82476.0,82475.0,0.3313706]
[1741540894070,0.001,82476.0,82475.0,0.3920053]
[1741540894269,0.001,82476.0,82475.0,0.6626853]
[1741540895074,0.00757542,82476.0,82475.0,0.5126853]
[1741540895364,2e-08,82476.0,82475.0,0.6626853]
[1741540895565,0.00018181,82484.0,82483.0,0.1212589]
[1741540895753,0.1212589,82483.0,82482.0,0.2127]
[1741540896158,0.5618589,82483.0,82482.0,0.2127]
[1741540896359,0.1212644,82482.0,82481.0,0.1212603]
[1741540896559,0.1212644,82482.0,82477.0,0.2127]
[1741540896560,0.0606315,82481.0,82477.0,0.2127]
[1741540896754,0.1212809,82468.0,82467.0,0.00018181]
[1741540896959,0.1212809,82468.0,82467.0,0.21288181]
[1741540897161,0.4406,82472.0,82469.0,0.1819186]
[1741540897362,0.5618751,82472.0,82471.0,0.1212765]
[1741540897562,0.1212765,82471.0,82470.0,0.2127]
[1741540897763,0.4820765,82471.0,82470.0,0.2127]
[1741540897964,0.8014,82471.0,82470.0,0.121278]
[1741540898169,0.9226765,82471.0,82468.0,0.2127]
[1741540898466,0.1211508,82469.0,82468.0,0.2127]
[1741540898670,0.1212809,82468.0,82467.0,0.00018181]
[1741540898863,0.3488809,82468.0,82467.0,0.00018181]
[1741540899562,0.35300357,82468.0,82467.0,0.00018181]
[1741540900062,0.1213045,82454.0,82453.0,0.1213021]
[1741540900268,0.121303,82453.0,82452.0,0.228]
[1741540900469,0.121303,82453.0,82444.0,0.4214575]
[1741540900470,0.55944,82453.0,82444.0,0.3608]
[1741540900667,0.57356821,82453.0,82445.0,0.228]
[1741540900863,0.00412267,82452.0,82451.0,0.1213059]
[1741540901259,0.1213148,82445.0,82444.0,0.3608]
[1741540901458,0.36492267,82445.0,82443.0,0.1213162]
[1741540901672,0.4287,82444.0,82443.0,0.1213162]
[1741540901870,0.2185,82444.0,82443.0,0.1213162]
[1741540902165,0.00412267,82445.0,82443.0,0.1213162]
[1741540902166,0.00412267,82445.0,82444.0,0.1213162]
[1741540902364,0.00728959,82447.0,82444.0,0.2126]
[1741540902561,0.00728959,82447.0,82446.0,0.1213133]
[1741540903173,0.00425109,82453.0,82444.0,0.2126]
[1741540903361,0.1213207,82441.0,82440.0,0.3608]
[1741540903764,0.12557179,82441.0,82440.0,0.4821221]
[1741540903977,0.12557179,82441.0,82440.0,0.3608]
[1741540904170,0.1213354,82431.0,82425.0,0.0606721]
[1741540904369,0.3608,82427.0,82422.0,0.121345]
[1741540904567,0.121353,82419.0,82418.0,0.01430491]
[1741540904771,0.121353,82419.0,82410.0,0.21534125]
[1741540904772,0.3608,82419.0,82410.0,0.21534125]
[1741540905075,0.1213648,82411.0,82410.0,0.21534125]
[1741540905269,0.00425109,82418.0,82410.0,0.21534125]
[1741540905270,5e-08,82418.0,82417.0,0.121356]
[1741540905470,5e-08,82418.0,82417.0,0.482156]
[1741540906577,0.01565516,82418.0,82415.0,0.2307]
[1741540906769,0.1213648,82411.0,82410.0,0.21534125]
[1741540907073,0.13558931,82411.0,82410.0,0.21534125]
[1741540907280,0.15631731,82411.0,82410.0,0.21534125]
[1741540907575,0.02847482,82411.0,82404.0,0.28824868]
[1741540907780,0.4821737,82405.0,82404.0,0.25029307]
[1741540907977,0.00607293,82405.0,82404.0,0.25029307]
[1741540908281,0.36687269,82405.0,82404.0,0.37166817]
[1741540908582,0.01465511,82410.0,82409.0,0.1213678]
[1741540908784,0.01465511,82410.0,82409.0,0.08222842]
[1741540909274,0.01465511,82410.0,82409.0,0.23222842]
[1741540909471,0.01465511,82410.0,82391.0,0.060697]
[1741540909780,0.121465,82343.0,82342.0,0.08991698]
[1741540910091,0.36687686,82343.0,82342.0,0.08991698]
[1741540910279,0.48834186,82343.0,82342.0,0.08991698]
[1741540910480,0.3608,82343.0,82342.0,0.1214665]
[1741540910782,0.3608,82343.0,82329.0,0.2166]
[1741540910783,0.37545511,82343.0,82329.0,0.2166]
[1741540910973,0.3608,82330.0,82329.0,0.3380857]
[1741540911175,0.3608,82330.0,82329.0,0.2166]
[1741540911369,0.3608,82330.0,82329.0,0.01440938]
[1741540911679,0.37545511,82330.0,82329.0,0.13589508]
[1741540911977,0.37545511,82330.0,82329.0,0.1214857]
[1741540912277,0.3608,82367.0,82329.0,0.3608]
[1741540912471,0.0607225,82357.0,82343.0,0.3608]
[1741540912673,0.1214901,82326.0,82325.0,0.3608]
[1741540912872,0.001,82330.0,82318.0,1.11593273]
[1741540912873,0.1215005,82319.0,82318.0,1.11593273]
[1741540913075,0.1215005,82319.0,82318.0,1.11529273]
[1741540913278,0.4823005,82319.0,82318.0,1.11529273]
[1741540913481,0.1215005,82319.0,82318.0,1.06210486]
[1741540914689,0.1215005,82319.0,82318.0,1.42290486]
[1741540914980,0.1215005,82319.0,82318.0,1.00891404]
[1741540915181,0.1215123,82311.0,82310.0,0.00018217]
[1741540916185,1.63885127,82326.0,82310.0,0.00018217]
[1741540916389,0.1215123,82311.0,82310.0,0.00018217]
[1741540916575,0.4823123,82311.0,82310.0,0.00018217]
[1741540916886,0.00018217,82327.0,82310.0,0.00018217]
[1741540917072,1.27693126,82326.0,82316.0,0.3608]
[1741540917281,1.27693126,82326.0,82317.0,0.2099]
[1741540917481,1.27693126,82325.0,82317.0,0.2099]
[1741540917689,0.00452503,82324.0,82317.0,0.2099]
[1741540917886,0.3608,82323.0,82317.0,0.2099]
[1741540918185,0.4822955,82323.0,82317.0,0.2099]
[1741540918386,0.00452503,82324.0,82323.0,0.1214946]
[1741540918682,1.27809126,82325.0,82323.0,0.3608]
[1741540918884,1.27693126,82325.0,82323.0,0.3608]
[1741540919092,1.39842286,82325.0,82324.0,0.7868]
[1741540919281,1.27693126,82325.0,82324.0,0.5474931]
[1741540919788,0.3214249,82325.0,82324.0,0.32865659]
[1741540919978,0.3214249,82325.0,82324.0,0.20716349]
[1741540919979,0.4429165,82325.0,82324.0,0.20716349]
[1741540920177,0.3224249,82325.0,82324.0,0.56796349]
[1741540920381,0.3224249,82325.0,82324.0,0.68945659]
[1741540920584,0.00018217,82327.0,82326.0,0.1214901]
[1741540920785,0.00018217,82327.0,82326.0,0.3608]
[1741540920988,0.07074707,82334.0,82333.0,0.1214798]
[1741540921177,0.53538006,82349.0,82348.0,0.1214577]
[1741540921890,0.53538006,82349.0,82342.0,0.2138]
[1741540921891,0.121465,82343.0,82342.0,0.2138]
[1741540922080,0.53538006,82349.0,82342.0,0.5746]
[1741540922388,0.53538006,82349.0,82348.0,0.1214577]
[1741540922578,0.53538006,82349.0,82342.0,0.5746]
[1741540922579,0.3608,82349.0,82342.0,0.2138]
[1741540922783,0.1214593,82347.0,82343.0,0.1214639]
[1741540922978,0.2201,82348.0,82336.0,0.33159668]
[1741540923183,0.2228,82356.0,82347.0,0.1214591]
[1741540923386,0.2228,82356.0,82331.0,0.21384]
[1741540923691,0.1214632,82345.0,82341.0,0.1214672]
[1741540923889,0.001,82349.0,82342.0,0.01893472]
[1741540924087,0.001,82349.0,82348.0,0.1214577]
[1741540924285,0.001,82349.0,82348.0,0.14039242]
[1741540924495,0.001,82349.0,82348.0,0.0872892]
[1741540924693,0.1224562,82349.0,82348.0,0.04931449]
[1741540924991,0.1224562,82349.0,82348.0,0.01893472]
[1741540925379,0.1214901,82326.0,82325.0,0.19392]
[1741540925581,0.1214808,82333.0,82332.0,0.1214813]
[1741540925787,0.1214901,82326.0,82325.0,0.63456]
[1741540926088,0.1214879,82328.0,82327.0,0.1214874]
[1741540926392,0.4477,82332.0,82325.0,0.7560504]
[1741540926687,0.4477,82332.0,82325.0,0.63392]
[1741540926882,0.00018217,82336.0,82325.0,0.63392]
[1741540926883,0.00018217,82336.0,82325.0,0.99472]
[1741540927085,0.00018217,82336.0,82327.0,0.060744]
[1741540927389,0.1214901,82326.0,82325.0,0.44064]
[1741540927586,0.3608,82334.0,82333.0,0.1214798]
[1741540927891,0.00018217,82336.0,82333.0,0.1932]
[1741540928088,0.1214768,82335.0,82334.0,0.4423]
[1741540928486,0.4822768,82335.0,82334.0,0.4423]
[1741540928687,1.0704855,82335.0,82334.0,0.4423]
[1741540928888,0.1407087,82335.0,82334.0,0.5637783]
[1741540929087,0.5015087,82335.0,82334.0,0.4423]
[1741540929280,0.6229855,82335.0,82334.0,0.4423]
[1741540929593,0.5015087,82335.0,82334.0,0.30852455]
[1741540929889,0.1407087,82335.0,82334.0,0.30852455]
[1741540930091,0.1417087,82335.0,82334.0,0.30852455]
[1741540930590,0.1417087,82335.0,82334.0,0.71507282]
[1741540930889,0.12844769,82342.0,82341.0,0.121468]
[1741540931081,0.12844769,82342.0,82341.0,0.313268]
[1741540931285,0.57170425,82343.0,82342.0,0.1214665]
[1741540931592,0.24614196,82358.0,82357.0,0.1214444]
[1741540931793,0.23814196,82358.0,82357.0,0.4822444]
[1741540932089,0.23814196,82358.0,82357.0,0.43518799]
[1741540932498,0.23814196,82358.0,82357.0,0.50097342]
[1741540932686,0.23814196,82358.0,82357.0,0.94027342]
[1741540932989,0.2813051,82365.0,82364.0,0.1214341]
[1741540933292,0.4214939,82396.0,82370.0,0.1214252]
[1741540933495,0.3608,82382.0,82370.0,0.25594543]
[1741540933791,0.3608,82384.0,82377.0,0.1214149]
[1741540933990,0.1214082,82382.0,82377.0,0.18720033]
[1741540934191,0.3608,82384.0,82377.0,0.18943092]
[1741540934493,0.3608,82384.0,82383.0,0.1214061]
[1741540934688,0.3608,82384.0,82383.0,0.28185602]
[1741540935089,0.00018217,82386.0,82385.0,0.1214031]
[1741540935392,0.00018217,82386.0,82385.0,0.20685518]
[1741540935598,0.00018217,82386.0,82385.0,0.22912188]
[1741540935891,0.00018217,82386.0,82385.0,0.44492188]
[1741540936191,0.1213815,82400.0,82391.0,0.1213943]
[1741540936490,0.0134442,82398.0,82391.0,0.20685884]
[1741540936693,0.001,82386.0,82385.0,0.06579067]
[1741540936895,0.3618,82386.0,82385.0,0.04702187]
[1741540937189,0.4832016,82386.0,82385.0,0.04702187]
[1741540937397,0.3618,82386.0,82385.0,0.08442701]
[1741540937590,0.4832016,82386.0,82385.0,0.02177764]
[1741540937789,0.3618,82386.0,82385.0,0.02177764]
[1741540937986,0.4832016,82386.0,82385.0,0.02177764]
[1741540938294,0.3578,82386.0,82385.0,0.01577764]
[1741540938496,0.3578,82386.0,82385.0,0.13718074]
[1741540938688,0.3578,82386.0,82385.0,0.1214031]
[1741540938995,0.2301,82391.0,82385.0,0.005]
[1741540939193,0.0606979,82390.0,82386.0,0.4422]
[1741540939383,0.36098217,82394.0,82391.0,0.1213943]
[1741540939589,0.1214002,82387.0,82386.0,0.62876]
[1741540939789,0.1214016,82386.0,82385.0,0.005]
[1741540939995,0.1214252,82370.0,82366.0,0.00924048]
[1741540940195,0.4822252,82370.0,82365.0,0.0135284]
[1741540940586,0.3608,82370.0,82363.0,0.225]
[1741540940893,0.3608,82370.0,82360.0,0.21384]
[1741540940894,0.1214385,82361.0,82360.0,0.21384]
[1741540941099,0.1214547,82350.0,82346.0,0.2172]
[1741540941296,0.4822547,82350.0,82346.0,0.4441]
[1741540941501,0.4822547,82350.0,82346.0,0.5655594]
[1741540941698,0.4772547,82350.0,82342.0,0.01371645]
[1741540941994,0.7037547,82350.0,82342.0,0.01371645]
[1741540942200,0.9280547,82350.0,82343.0,0.1214645]
[1741540942396,0.94290319,82350.0,82342.0,0.01371645]
[1741540942603,0.1214665,82342.0,82341.0,0.00018217]
[1741540942900,0.4822665,82342.0,82341.0,0.00018217]
[1741540943802,0.1215037,82317.0,82315.0,0.00918218]
[1741540944003,0.3608,82321.0,82320.0,0.121499]
[1741540944393,0.3608,82321.0,82305.0,0.00910109]
[1741540944589,0.3608,82314.0,82313.0,0.1215093]
[1741540944993,0.00018217,82320.0,82319.0,0.1215005]
[1741540945603,0.00018217,82320.0,82313.0,0.22871527]
[1741540945800,0.3608,82316.0,82315.0,0.1215055]
[1741540946005,0.00018217,82320.0,82319.0,0.1215005]
[1741540946397,0.00118217,82320.0,82319.0,0.1215005]
[1741540946598,0.00118217,82320.0,82319.0,0.5563005]
[1741540946794,0.00118217,82320.0,82319.0,0.4348]
[1741540947103,0.12268117,82320.0,82319.0,0.5563005]
[1741540947299,0.48348117,82320.0,82319.0,0.2149]
[1741540947498,0.36198217,82320.0,82319.0,0.3364005]
[1741540947694,0.00118217,82320.0,82319.0,0.3364005]
[1741540947892,0.00018217,82320.0,82319.0,0.3364005]
[1741540948206,0.01485054,82332.0,82331.0,0.1214827]
[1741540948405,0.3608,82337.0,82316.0,0.3608]
[1741540948406,0.3608,82337.0,82336.0,0.1214754]
[1741540949701,0.00018217,82345.0,82344.0,0.1214636]
[1741540950301,0.00018217,82345.0,82344.0,0.13491195]
[1741540950607,0.00018217,82345.0,82344.0,0.31751195]
[1741540950804,0.00018217,82345.0,82344.0,0.19604835]
[1741540950999,0.12164427,82345.0,82344.0,0.19552835]
[1741540951397,0.12164427,82345.0,82344.0,0.38808]
[1741540951700,0.12164427,82345.0,82320.0,0.33604099]
[1741540951903,0.1214766,82336.0,82325.0,0.206]
[1741540952204,0.3608,82333.0,82330.0,0.0607415]
[1741540952404,0.3253813,82332.0,82331.0,0.206]
[1741540952707,0.1214842,82330.0,82329.0,0.18148]
[1741540952905,0.1214842,82330.0,82328.0,0.01413334]
[1741540952906,0.1214857,82329.0,82328.0,0.01413334]
[1741540953205,0.3310857,82329.0,82328.0,0.00018217]
[1741540953602,0.5509857,82329.0,82328.0,0.00018217]
[1741540955213,0.1215137,82311.0,82310.0,0.1215109]
[1741540955399,0.1205182,82309.0,82308.0,0.1215158]
[1741540955602,0.4333,82310.0,82309.0,0.1215152]
[1741540955803,0.3608,82316.0,82315.0,0.1215064]
[1741540956203,0.06092887,82324.0,82311.0,0.0607556]
[1741540956403,0.00018217,82324.0,82323.0,0.1214946]
[1741540956610,0.00018217,82324.0,82323.0,0.3005346]
[1741540957203,0.00018217,82324.0,82323.0,0.4505346]
[1741540957408,0.10712708,82334.0,82333.0,0.1214798]
[1741540957806,0.10712708,82334.0,82333.0,0.13551815]
[1741540958314,0.46792708,82334.0,82333.0,0.34951815]
[1741540958516,0.21425416,82340.0,82333.0,0.44603835]
[1741540958811,0.21425416,82340.0,82333.0,0.49444606]
[1741540959001,0.21425416,82340.0,82334.0,0.17748]
[1741540959202,0.205,82339.0,82338.0,0.1214724]
[1741540960007,0.205,82339.0,82334.0,0.17748]
[1741540960204,0.3608,82335.0,82334.0,0.3596971]
[1741540960602,0.21425416,82340.0,82334.0,0.2382188]
[1741540960807,0.21425416,82340.0,82339.0,0.1214709]
[1741540961007,0.00018217,82342.0,82334.0,0.17748]
[1741540961008,0.4082,82341.0,82334.0,0.17748]
[1741540961210,0.0607366,82338.0,82337.0,0.1214706]
[1741540961415,0.0607366,82338.0,82337.0,0.2429413]
[1741540961717,0.0607366,82338.0,82334.0,0.2989568]
[1741540961718,0.1214785,82335.0,82334.0,0.1214743]
[1741540961910,0.3608,82335.0,82332.0,0.06074]
[1741540962107,0.00593492,82334.0,82333.0,0.1214798]
[1741540962311,0.33211322,82334.0,82333.0,0.1214798]
[1741540962630,0.21063492,82334.0,82330.0,0.16344458]
[1741540962811,0.21063492,82334.0,82333.0,0.1214798]
[1741540963212,0.3608,82335.0,82334.0,0.1214783]
[1741540963411,0.005,82338.0,82331.0,0.0607407]
[1741540963609,0.005,82338.0,82337.0,0.1214739]
[1741540964206,0.005,82338.0,82337.0,0.4822739]
[1741540964410,0.10732928,82339.0,82338.0,0.1822084]
[1741540964609,0.17888213,82349.0,82348.0,0.1214577]
[1741540965210,0.17888213,82349.0,82348.0,0.28040733]
[1741540966118,0.17988213,82349.0,82348.0,0.28140733]
[1741540966315,0.17988213,82349.0,82348.0,0.13140733]
[1741540967114,0.17988213,82349.0,82348.0,0.00994963]
[1741540967312,0.54068213,82349.0,82348.0,0.13140733]
[1741540967618,0.66213833,82349.0,82348.0,0.13140733]
[1741540967820,0.4822562,82349.0,82348.0,0.13540733]
[1741540968020,0.4822562,82349.0,82348.0,0.01394963]
[1741540968216,0.4822562,82349.0,82348.0,0.005]
[1741540968617,0.1164626,82345.0,82344.0,0.1214602]
[1741540968817,0.1214657,82343.0,82342.0,0.1214632]
[1741540969024,0.2045,82344.0,82342.0,0.1214632]
[1741540969220,0.2045,82344.0,82343.0,0.121465]
[1741540969409,0.3259636,82344.0,82343.0,0.121465]
[1741540969613,0.1214724,82338.0,82337.0,0.22306499]
[1741540969821,0.1214724,82338.0,82337.0,0.00918499]
[1741540970122,0.4215359,82339.0,82320.0,0.21388]
[1741540970309,0.3608,82331.0,82327.0,0.121487]
[1741540970511,0.3608,82331.0,82330.0,0.1214842]
[1741540971320,0.4822715,82339.0,82338.0,0.1214724]
[1741540971623,0.3608,82339.0,82336.0,0.0607371]
[1741540971825,0.001,82331.0,82327.0,0.1214883]
[1741540972124,0.3608,82330.0,82329.0,0.1214857]
[1741540973417,0.3608,82339.0,82338.0,0.1214724]
[1741540974320,0.3608,82339.0,82336.0,0.1214748]
[1741540974527,0.3608,82339.0,82338.0,0.1214724]
[1741540975216,0.5815,82339.0,82338.0,0.1214724]
[1741540975430,0.7029709,82339.0,82338.0,0.2158]
[1741540975731,0.8545362,82339.0,82334.0,0.121477]
[1741540975929,0.1214798,82333.0,82332.0,0.12159844]
[1741540976225,0.121478,82335.0,82334.0,0.1214761]
[1741540976423,0.3608,82338.0,82337.0,0.1214739]
[1741540976725,0.7938,82338.0,82337.0,0.1214739]
[1741540976940,0.5815,82338.0,82337.0,0.1214739]
[1741540977428,0.7938,82338.0,82337.0,0.1214739]
[1741540977721,0.1214767,82336.0,82335.0,0.1214739]
[1741540977926,0.79488,82338.0,82333.0,0.2158]
[1741540978126,0.2193,82335.0,82334.0,0.1822168]
[1741540978427,0.2193,82335.0,82334.0,0.3926168]
[1741540980017,0.48339241,82338.0,82337.0,0.1214739]
[1741540980222,0.3252088,82338.0,82337.0,0.1214739]
[1741540980420,0.00018217,82340.0,82339.0,0.1214709]
[1741540980620,0.00018217,82340.0,82339.0,0.2867909]
[1741540981024,0.17870003,82345.0,82339.0,0.6506709]
[1741540981229,0.05247567,82355.0,82354.0,0.1214488]
[1741540981428,0.00993715,82355.0,82354.0,0.2863288]
[1741540981730,0.00993715,82355.0,82345.0,0.1214609]
[1741540981929,0.0607251,82353.0,82348.0,0.1214562]
[1741540982118,0.3608,82349.0,82348.0,0.1214562]
[1741540982317,0.3608,82349.0,82346.0,0.2752297]
[1741540982318,0.3608,82353.0,82347.0,0.2701291]
[1741540982528,0.3608,82353.0,82352.0,0.1214518]
[1741540982734,0.121465,82343.0,82342.0,0.00018217]
[1741540982921,0.421,82352.0,82342.0,0.00018217]
[1741540983125,0.37578271,82353.0,82349.0,0.1214562]
[1741540983126,0.2107,82350.0,82349.0,0.1214562]
[1741540983532,0.3608,82353.0,82348.0,0.4239]
[1741540983831,0.3608,82362.0,82348.0,0.4239]
[1741540984029,0.3608,82362.0,82361.0,0.1214385]
[1741540984220,0.1214273,82369.0,82358.0,0.16408]
[1741540984424,0.2147,82370.0,82368.0,0.1214281]
[1741540984626,0.2094,82370.0,82349.0,0.16396]
[1741540984827,0.3608,82354.0,82353.0,0.1214503]
[1741540985033,0.3608,82354.0,82325.0,0.22677837]
[1741540985217,0.4822724,82338.0,82325.0,0.00907837]
[1741540985419,0.4822724,82338.0,82337.0,0.20018217]
[1741540985627,0.3608,82338.0,82337.0,0.20018217]
[1741540985828,0.3608,82338.0,82337.0,0.21772913]
[1741540986033,0.48834952,82338.0,82337.0,0.20018217]
[1741540986334,0.69774952,82338.0,82337.0,0.20018217]
[1741540986925,0.5702,82338.0,82337.0,0.32165607]
[1741540987133,0.3608,82338.0,82337.0,0.32165607]
[1741540987322,0.36460819,82338.0,82337.0,0.32165607]
[1741540987526,0.36460819,82338.0,82337.0,0.53585607]
[1741540987931,0.3608,82338.0,82337.0,0.53585607]
[1741540988127,0.4822724,82338.0,82337.0,0.20018217]
[1741540989133,0.3608,82338.0,82337.0,0.20018217]
[1741540989438,0.3608,82338.0,82337.0,0.32165607]
[1741540990632,0.0607334,82342.0,82337.0,0.32165607]
[1741540990633,0.1214687,82341.0,82338.0,0.0607356]
[1741540990834,0.3385687,82341.0,82340.0,0.1214695]
[1741540991033,0.338568,82341.0,82338.0,0.214]
[1741540991237,0.3608,82339.0,82337.0,0.20018217]
[1741540991437,0.6993724,82338.0,82337.0,0.20018217]
[1741540991838,0.69845019,82338.0,82337.0,0.20018217]
[1741540992336,0.80375656,82338.0,82332.0,0.00011764]
[1741540992540,0.15,82335.0,82300.0,0.47011622]
[1741540992844,0.1215167,82308.0,82305.0,0.1215205]
[1741540993049,0.1215167,82308.0,82304.0,0.1215214]
[1741540993242,0.3608,82309.0,82308.0,0.1215167]
[1741540993429,0.01495848,82327.0,82308.0,0.2074]
[1741540993635,0.3608,82332.0,82318.0,0.1215019]
[1741540993936,0.00018217,82322.0,82318.0,0.3353819]
[1741540994138,0.3608,82332.0,82318.0,0.3353819]
[1741540994139,0.3608,82332.0,82325.0,0.0607457]
[1741540994336,0.3608,82344.0,82343.0,0.121465]
[1741540994538,0.3608,82344.0,82337.0,0.0607368]
[1741540994739,0.3608,82344.0,82338.0,0.2074]
[1741540994939,0.1214764,82336.0,82330.0,0.16136]
[1741540995235,0.3608,82344.0,82335.0,0.2681379]
[1741540995443,0.3608,82336.0,82335.0,0.2681379]
[1741540996148,0.4822754,82336.0,82335.0,0.2074]
[1741540997138,0.1214813,82332.0,82331.0,0.1214822]
[1741540997540,0.3608,82333.0,82331.0,0.13869232]
[1741540997851,0.2065,82332.0,82331.0,0.13869232]
[1741540998051,0.2065,82332.0,82330.0,0.1214827]
[1741540998240,0.4822696,82340.0,82329.0,0.2162]
[1741540998436,0.2065,82339.0,82338.0,0.1214714]
[1741540998652,0.3608,82340.0,82339.0,0.1214709]
[1741540999047,0.3608,82340.0,82339.0,0.3372709]
[1741540999244,0.00018217,82341.0,82340.0,0.1214695]
[1741540999439,0.3608,82356.0,82339.0,0.57968]
[1741540999747,0.3608,82356.0,82355.0,0.1214473]
[1741540999949,0.01496803,82369.0,82362.0,0.121437]
[1741541000162,0.3608,82374.0,82373.0,0.1214208]
[1741541000547,0.39254209,82376.0,82375.0,0.1214179]
[1741541001056,0.39254209,82376.0,82375.0,0.13850443]
[1741541001349,0.39254209,82376.0,82375.0,0.01708653]
[1741541001549,0.39254209,82376.0,82371.0,0.15928]
[1741541001752,0.3608,82372.0,82366.0,0.2158]
[1741541001945,0.1214311,82366.0,82348.0,0.0607282]
[1741541002148,0.3608,82370.0,82350.0,0.15972]
[1741541002346,0.1214474,82355.0,82352.0,0.1214513]
[1741541002561,0.3608,82353.0,82350.0,0.15972]
[1741541002756,0.1214532,82351.0,82350.0,0.15972]
[1741541002956,0.1214547,82350.0,82349.0,0.0092152]
[1741541003155,0.121465,82343.0,82342.0,0.2230177]
[1741541003345,0.3608,82346.0,82342.0,0.2837504]
[1741541003549,0.121465,82343.0,82342.0,0.2230177]
[1741541003755,0.4261,82345.0,82342.0,0.0091377]
[1741541003952,0.5475622,82345.0,82342.0,0.0607332]
[1741541004153,0.5475622,82345.0,82341.0,0.00018217]
[1741541004154,0.4261,82345.0,82341.0,0.00018217]
[1741541004356,0.121466,82343.0,82341.0,0.12164947]
[1741541004551,0.3608,82346.0,82342.0,0.1214657]
[1741541004852,0.3608,82346.0,82341.0,0.00018217]
[1741541004853,0.3330641,82344.0,82343.0,0.121465]
[1741541005058,0.1214665,82342.0,82341.0,0.00018217]
[1741541005253,0.3598,82342.0,82341.0,0.00018217]
[1741541005446,0.3598,82342.0,82341.0,0.12165017]
[1741541005757,0.1214665,82342.0,82341.0,0.00018217]
[1741541006054,0.2116,82344.0,82343.0,0.121465]
[1741541007353,0.3330636,82344.0,82343.0,0.121465]
[1741541007671,0.3330636,82344.0,82341.0,0.06091557]
[1741541007672,0.1214665,82342.0,82341.0,0.00018217]
[1741541007967,0.1184665,82342.0,82341.0,0.00018217]
[1741541008259,0.121496,82322.0,82321.0,0.2788974]
[1741541008459,0.3608,82324.0,82323.0,0.1214946]
[1741541008666,0.3608,82324.0,82322.0,0.1214951]
[1741541008963,0.2164,82323.0,82322.0,0.1214951]
[1741541009356,0.3608,82334.0,82333.0,0.1214798]
[1741541010159,0.3608,82341.0,82340.0,0.1214695]
[1741541010350,0.1214798,82333.0,82332.0,0.4344]
[1741541010550,0.4822798,82333.0,82332.0,0.55606347]
[1741541010958,0.4822798,82333.0,82332.0,0.00018217]
[1741541011957,0.7006798,82333.0,82332.0,0.00018217]
[1741541012553,0.6996798,82333.0,82332.0,0.00018217]
[1741541012856,0.7991,82333.0,82321.0,0.004]
[1741541013055,0.0607458,82325.0,82321.0,0.004]
[1741541013258,0.558596,82324.0,82323.0,0.121494]
[1741541013451,0.121496,82322.0,82321.0,0.004]